fUSD/lending_fUSD_20260319
["ID","MTS","AMOUNT","RATE_DAILY","PERIOD"]
[408568813,1773895848098,-1500.0,0.00014795,2]
[408568814,1773895848107,-1500.0,0.00014795,2]
[408568815,1773895848117,-1500.0,0.00014795,2]
[408568816,1773895848126,-1500.0,0.00014795,2]
[408568817,1773895848135,-1500.0,0.00014795,2]
[408568818,1773895848144,-1500.0,0.00014795,2]
[408568819,1773895848153,-1500.0,0.00014795,2]
[408568820,1773895848162,-1500.0,0.00014795,2]
[408568821,1773895848171,-1500.0,0.00014795,2]
[408568822,1773895848181,-1500.0,0.00014795,2]
[408568823,1773895848190,-1500.0,0.00014795,2]
[408568824,1773895848199,-1500.0,0.00014795,2]
[408568825,1773895848207,-1500.0,0.00014795,2]
[408568826,1773895848216,-1567.0,0.0001482,2]
[408568827,1773895848226,-2000.0,0.00014833,2]
[408568828,1773895848234,-310.0,0.00014833,3]
[408568829,1773895848244,-152.0,0.00014833,3]
[408568830,1773895848253,-201.64,0.0001484,2]
[408568831,1773895848262,-3665.66,0.000149,2]
[408568832,1773895848271,-600.0,0.000149,5]
[408568833,1773895848280,-160.48856084,0.0001491,2]
[408568834,1773895848290,-2000.0,0.00014933,2]
[408568835,1773895848299,-152.0,0.00014943,5]
[408568836,1773895848308,-156.9,0.00014997,2]
[408568837,1773895848317,-250.0,0.00015,2]
[408568838,1773895848327,-500.0,0.00015,2]
[408568839,1773895848336,-500.0,0.00015,2]
[408568840,1773895848345,-500.0,0.00015,2]
[408568841,1773895848354,-500.0,0.00015,2]
[408568842,1773895848364,-154.62815875,0.00015,2]
[408568843,1773895848373,-500.0,0.00015,2]
[408568844,1773895848383,-500.0,0.00015,2]
[408568845,1773895848392,-294.9,0.00015016,2]
[408568846,1773895848402,-2000.0,0.00015033,2]
[408568847,1773895848411,-2402.0,0.0001504,2]
[408568848,1773895848420,-2402.0,0.0001504,2]
[408568849,1773895848430,-3134.15,0.00015068,2]
[408568850,1773895848441,-577417.61,0.000151,2]
[408568851,1773895848451,-4550.65,0.000151,2]
[408568852,1773895848463,-8552.64,0.000151,2]
[408568853,1773895848473,-152.0,0.00015112,6]
[408568854,1773895848482,-435.0,0.00015123,2]
[408568855,1773895848492,-2000.0,0.00015133,2]
[408568856,1773895848501,-1567.0,0.00015145,2]
[408568857,1773895848510,-504.0,0.00015159,3]
[408568858,1773895848521,-299.0,0.00015172,2]
[408568859,1773895848531,-536.17354506,0.00015193,2]
[408568860,1773895848540,-6884.11025588,0.00015199,2]
[408568861,1773895848550,-5000.0,0.00015199,2]
[408568862,1773895848560,-2000.0,0.00015233,2]
[408568863,1773895848572,-152.0,0.00015281,7]
[408568864,1773895848582,-151.0,0.00015297,2]
[408568865,1773895848592,-201.62884005,0.0001531,2]
[408568866,1773895848603,-2000.0,0.00015333,2]
[408568867,1773895848613,-2000.0,0.00015342,2]
[408568868,1773895848622,-1676.1614452,0.00015342,2]
[408568869,1773895848631,-2000.0,0.00015342,2]
[408568870,1773895848641,-455.72571989,0.00015342,2]
[408568871,1773895848650,-2000.0,0.00015342,2]
[408568872,1773895848659,-2000.0,0.00015342,2]
[408568873,1773895848668,-2000.0,0.00015342,2]
[408568874,1773895848678,-578.73590627,0.00015342,2]
[408568875,1773895848689,-232.68961964,0.00015342,2]
[408568876,1773895848699,-2000.0,0.00015342,2]
[408568877,1773895848708,-2000.0,0.00015342,2]
[408568878,1773895848717,-2000.0,0.00015342,2]
[408568879,1773895848726,-1792.32890878,0.00015342,2]
[408568880,1773895848735,-2000.0,0.00015342,2]
[408568881,1773895848743,-1534.68838991,0.00015342,2]
[408568882,1773895848753,-2000.0,0.00015342,2]
[408568883,1773895848762,-2000.0,0.00015342,2]
[408568884,1773895848771,-931.42701484,0.00015342,2]
[408568885,1773895848780,-2000.0,0.00015342,2]
[408568886,1773895848789,-2074.83203376,0.00015342,2]
[408568887,1773895848798,-1887.45023446,0.00015342,2]
[408568888,1773895848807,-1050.20986564,0.00015342,2]
[408568889,1773895848816,-2000.0,0.00015342,2]
[408568890,1773895848825,-2000.0,0.00015342,2]
[408568891,1773895848836,-3609.92329877,0.00015346,2]
[408568892,1773895848845,-350.0,0.00015353,2]
[408568893,1773895848854,-500.0,0.00015372,2]
[408568894,1773895848863,-507.21704968,0.00015372,2]
[408568895,1773895848873,-308.11684657,0.00015372,2]
[408568896,1773895848883,-505.19692822,0.00015372,2]
[408568897,1773895848893,-500.0,0.00015372,2]
[408568898,1773895848902,-500.0,0.00015372,2]
[408568899,1773895848911,-501.79858998,0.00015372,2]
[408568900,1773895848920,-497.57987952,0.00015372,2]
[408568901,1773895848930,-500.0,0.00015372,2]
[408568902,1773895848939,-350.0,0.00015388,2]
[408568903,1773895848949,-500.79338971,0.00015399,2]
[408568904,1773895848958,-500.0,0.00015399,2]
[408568905,1773895848967,-500.0,0.00015399,2]
[408568906,1773895848982,-500.0,0.00015399,2]
[408568907,1773895848991,-507.46942592,0.00015399,2]
[408568908,1773895849000,-500.0,0.00015399,2]
[408568909,1773895849009,-500.0,0.00015399,2]
[408568910,1773895849018,-500.0,0.00015399,2]
[408568911,1773895849027,-515.1515975,0.00015399,2]
[408568912,1773895849036,-500.0,0.00015399,2]
[408568913,1773895849045,-500.0,0.00015399,2]
[408568914,1773895849054,-510.13276666,0.00015399,2]
[408568915,1773895849063,-2000.0,0.00015433,2]
[408568916,1773895849072,-152.0,0.00015451,8]
[408568917,1773895849082,-1000.0,0.00015452,2]
[408568918,1773895849092,-2300.0,0.00015452,2]
[408568919,1773895849101,-1600.0,0.00015452,2]
[408568920,1773895849111,-807.0,0.000155,2]
[408568921,1773895849122,-500.0,0.00015533,2]
[408568922,1773895849132,-500.0,0.00015533,2]
[408568923,1773895849141,-500.0,0.00015533,2]
[408568924,1773895849150,-500.0,0.00015533,2]
[408568925,1773895849161,-500.0,0.00015533,2]
[408568926,1773895849170,-500.0,0.00015533,2]
[408568927,1773895849179,-500.0,0.00015533,2]
[408568928,1773895849188,-500.0,0.00015533,2]
[408568929,1773895849197,-500.0,0.00015533,2]
[408568930,1773895849207,-500.0,0.00015533,2]
[408568931,1773895849218,-500.0,0.00015533,2]
[408568932,1773895849229,-500.0,0.00015533,2]
[408568933,1773895849240,-613.0,0.00015533,2]
[408568934,1773895849250,-2000.0,0.00015533,2]
[408568935,1773895849260,-201.64,0.00015579,2]
[408568936,1773895849270,-294.9,0.00015593,2]
[408568937,1773895849280,-9535.42,0.000156,2]
[408568938,1773895849289,-600.0,0.000156,5]
[408568939,1773895849299,-999.0,0.000156,2]
[408568940,1773895849308,-152.0,0.0001562,9]
[408568941,1773895849317,-2000.0,0.00015633,2]
[408568942,1773895849326,-310.0,0.00015638,3]
[408568943,1773895849335,-156.9,0.00015662,2]
[408568944,1773895849344,-3922.94171058,0.0001568,2]
[408568945,1773895849353,-2402.0,0.0001568,2]
[408568946,1773895849362,-350.0,0.00015686,2]
[408568947,1773895849371,-600.0,0.000157,5]
[408568948,1773895849380,-225.96877254,0.000157,2]
[408568949,1773895849389,-237.75233873,0.000157,2]
[408568950,1773895849398,-1252.0,0.00015718,2]
[408568951,1773895849407,-150.0,0.0001573,2]
[408568952,1773895849416,-2000.0,0.00015733,2]
[408568953,1773895849425,-150.0,0.00015752,2]
[408568954,1773895849434,-3134.15,0.00015753,2]
[408568955,1773895849443,-150.0,0.00015767,2]
[408568956,1773895849452,-150.0,0.00015776,2]
[408568957,1773895849461,-150.0,0.00015785,2]
[408568958,1773895849470,-1000.0,0.00015788,2]
[408568959,1773895849480,-152.0,0.0001579,3]
[408568960,1773895849489,-152.0,0.0001579,10]
[408568961,1773895849498,-600.0,0.000158,5]
[408568962,1773895849507,-2653.0,0.00015803,2]
[408568963,1773895849516,-321.01,0.00015807,2]
[408568964,1773895849528,-150.0,0.00015811,2]
[408568965,1773895849537,-150.0,0.00015818,2]
[408568966,1773895849546,-2000.0,0.00015833,2]
[408568967,1773895849555,-300.0,0.00015836,2]
[408568968,1773895849565,-2000.0,0.0001584,2]
[408568969,1773895849574,-2000.0,0.0001584,2]
[408568970,1773895849584,-2000.0,0.0001584,2]
[408568971,1773895849595,-300.0,0.00015862,2]
[408568972,1773895849604,-200.0,0.00015872,2]
[408568973,1773895849613,-4609.0,0.00015885,2]
[408568974,1773895849623,-2000.0,0.0001589,2]
[408568975,1773895849632,-2500.0,0.0001589,2]
[408568976,1773895849641,-2500.0,0.0001589,2]
[408568977,1773895849650,-1932.09789512,0.0001589,2]
[408568978,1773895849658,-461.15092032,0.0001589,2]
[408568979,1773895849667,-2500.0,0.0001589,2]
[408568980,1773895849676,-2194.66141584,0.0001589,2]
[408568981,1773895849685,-2500.0,0.0001589,2]
[408568982,1773895849695,-2500.0,0.0001589,2]
[408568983,1773895849704,-1506.68098994,0.0001589,2]
[408568984,1773895849714,-1737.3283016,0.0001589,2]
[408568985,1773895849724,-1156.4847291,0.0001589,2]
[408568986,1773895849735,-2500.0,0.0001589,2]
[408568987,1773895849743,-2500.0,0.0001589,2]
[408568988,1773895849753,-919.75064279,0.0001589,2]
[408568989,1773895849763,-25000.0,0.00015891,3]
[408568990,1773895849773,-176.9670118,0.000159,7]
[408568991,1773895849784,-300.0,0.000159,2]
[408568992,1773895849793,-150.0,0.000159,2]
[408568993,1773895849802,-25000.0,0.000159,3]
[408568994,1773895849812,-160.48856084,0.000159,2]
[408568995,1773895849821,-150.0,0.000159,2]
[408568996,1773895849830,-150.0,0.000159,2]
[408568997,1773895849840,-326.12059208,0.000159,3]
[408568998,1773895849849,-150.0,0.000159,2]
[408568999,1773895849858,-150.0,0.000159,2]
[408569000,1773895849867,-545.17180094,0.000159,2]
[408569001,1773895849877,-545.17180094,0.000159,2]
[408569002,1773895849887,-762.0,0.000159,5]
[408569003,1773895849896,-150.0,0.000159,2]
[408569004,1773895849906,-536.17354506,0.000159,2]
[408569005,1773895849915,-150.0,0.000159,2]
[408569006,1773895849925,-402.91187545,0.000159,2]
[408569007,1773895849935,-174.50409824,0.000159,2]
[408569008,1773895849945,-2186.0,0.000159,5]
[408569009,1773895849955,-1745.0,0.000159,5]
[408569010,1773895849964,-185.59339656,0.00015908,2]
[408569011,1773895849974,-300.0,0.00015921,2]
[408569012,1773895849983,-300.0,0.00015933,2]
[408569013,1773895849993,-2000.0,0.00015933,2]
[408569014,1773895850003,-1346.65249792,0.00015939,10]
[408569015,1773895850013,-352.0,0.00015942,2]
[408569016,1773895850022,-150.0,0.00015944,2]
[408569017,1773895850032,-350.0,0.00015948,2]
[408569018,1773895850041,-152.0,0.00015959,11]
[408569019,1773895850050,-150.0,0.00015963,2]
[408569020,1773895850060,-150.0,0.00015969,2]
[408569021,1773895850069,-300.0,0.0001597,2]
[408569022,1773895850078,-700.0,0.0001597,2]
[408569023,1773895850088,-700.0,0.0001597,2]
[408569024,1773895850097,-700.0,0.0001597,2]
[408569025,1773895850107,-700.0,0.0001597,2]
[408569026,1773895850119,-700.0,0.0001597,2]
[408569027,1773895850129,-700.0,0.0001597,2]
[408569028,1773895850139,-700.0,0.0001597,2]
[408569029,1773895850149,-700.0,0.0001597,2]
[408569030,1773895850160,-704.56000601,0.0001597,2]
[408569031,1773895850171,-1000.0,0.00015971,2]
[408569032,1773895850180,-500.0,0.00015973,2]
[408569033,1773895850190,-500.0,0.00015973,2]
[408569034,1773895850200,-353.0,0.00015981,2]
[408569035,1773895850211,-150.0,0.0001599,2]
[408569036,1773895850220,-151.0,0.00015997,2]
[408569037,1773895850231,-151.0,0.00015997,2]
[408569038,1773895850241,-1915046.17594568,0.00016,2]
[408569039,1773895850252,-684932.88678264,0.00016,2]
[408569040,1773895850261,-324987.43029854,0.00016,2]
[408569041,1773895850829,-946.05260061,0.00016,2]
[408569042,1773895850841,-259.39905185,0.00016,2]
[408569043,1773895850852,-996.8509344,0.00016,2]
[408569044,1773895851054,-475.0,0.00013421,2]
[408569045,1773895851064,-87.39994,0.00014157,2]
[408569046,1773895851075,-345.0,0.00014157,2]
[408569047,1773895851089,-673.3310658,0.00014157,2]
[408569048,1773895851100,-4900.2689942,0.00014157,2]
[408569049,1773895851110,-6580.57868065,0.00016,2]
[408569050,1773895851263,-480.79317434,0.00013421,2]
[408569051,1773895851273,-9.47696706,0.00016,2]
[408569052,1773895851284,-22800.74922998,0.00016,2]
[408569053,1773895873690,2940.52963309,0.00010751,2]
[408569054,1773895873714,10000.01,0.00010751,2]
[408569055,1773895873737,8343.11046691,0.00010751,2]
[408569056,1773895886975,1656.89953309,0.00010751,2]
[408569057,1773895886998,843.10046691,0.00010751,2]
[408569058,1773895888868,1058.675,0.00010751,2]
[408569059,1773895914943,8098.23453309,0.00010751,2]
[408569060,1773895914965,10000.01,0.00010751,2]
[408569061,1773895914986,10000.01,0.00010751,2]
[408569062,1773895915008,10000.01,0.00010751,2]
[408569063,1773895915029,10000.01,0.00010751,2]
[408569064,1773895915052,10000.01,0.00010751,2]
[408569065,1773895915073,10000.01,0.00010751,2]
[408569066,1773895915096,10000.01,0.00010751,2]
[408569067,1773895915118,10000.01,0.00010751,2]
[408569068,1773895915142,10000.01,0.00010751,2]
[408569069,1773895934693,-9019.56404842,0.00010751,2]
[408569070,1773895934726,-10000.01,0.00010751,2]
[408569071,1773895934772,-10000.01,0.00010751,2]
[408569072,1773895934790,-10000.01,0.00010751,2]
[408569073,1773895934854,-10000.01,0.00010751,2]
[408569074,1773895936950,-10000.01,0.00010751,2]
[408569075,1773895937047,-10000.01,0.00010751,2]
[408569076,1773895937178,-10000.01,0.00010751,2]
[408569077,1773895937290,-10000.01,0.00010751,2]
[408569078,1773895939929,-10000.01,0.00010751,2]
[408569079,1773895940016,-10000.01,0.00010751,2]
[408569080,1773895940145,-10000.01,0.00010751,2]
[408569081,1773895940255,-10000.01,0.00010751,2]
[408569082,1773895940359,-10000.01,0.00010751,2]
[408569083,1773895940470,-10000.01,0.00010751,2]
[408569084,1773895951976,-10000.01,0.00010751,2]
[408569085,1773895958047,-10000.01,0.00010751,2]
[408569087,1773896067473,-2190.39259852,0.00010651,2]
[408569088,1773896097853,-203.78647731,0.00010651,2]
[408569089,1773896101428,9592.43704538,0.00010651,2]
[408569090,1773896101449,407.56295462,0.00010651,2]
[408569091,1773896106736,207.0,0.00010651,2]
[408569092,1773896107134,361.0,0.00010651,2]
[408569093,1773896248555,172.58,7.941e-05,2]
[408569094,1773896248749,172.58,9.264e-05,2]
[408569095,1773896284604,200.0,0.000105,2]
[408569096,1773896373508,262.24138019,0.00010551,2]
[408569099,1773896418496,-172.58,0.00010588,2]
[408569100,1773896418526,-237.0,0.00010588,2]
[408569101,1773896418561,-300.0,0.00010649,2]
[408569102,1773896418590,-1200.0,0.0001065,2]
[408569103,1773896418617,-300.0,0.0001065,2]
[408569104,1773896418646,-300.0,0.0001065,2]
[408569105,1773896418674,-300.0,0.0001065,2]
[408569106,1773896418704,-1200.0,0.0001065,2]
[408569107,1773896424402,-3708.5681,0.00010651,2]
[408569108,1773896424431,-82.8738,0.00010651,2]
[408569118,1773896427420,-2417.1262,0.00010651,2]
[408569119,1773896427451,-250.0,0.00010651,2]
[408569120,1773896427492,-343.0,0.00010651,3]
[408569121,1773896427520,-197.0,0.00010651,3]
[408569122,1773896427547,-158.0,0.00010651,3]
[408569123,1773896427575,-613.74161241,0.00010651,2]
[408569124,1773896427602,-380.14500494,0.00010651,2]
[408569125,1773896480731,559.85,9.899e-05,2]
[408569239,1773896545909,-4143.8693,0.00010651,2]
[408569240,1773896547543,-5456.99058511,0.00010651,2]
[408569241,1773896548752,-10000.01,0.00010651,2]
[408569243,1773896551875,-4391.78901489,0.00010651,2]
[408569244,1773896551922,-1216.43197022,0.00010651,2]
[408569246,1773896615166,161.67740256,0.00016333,120]
[408569247,1773896707840,-2170.40788405,0.00010649,2]
[408569248,1773896707872,-300.0,0.0001065,2]
[408569249,1773896707902,-884.0,0.0001065,2]
[408569250,1773896707934,-300.0,0.0001065,2]
[408569251,1773896707961,-300.0,0.0001065,2]
[408569252,1773896707990,-891.1942319,0.0001065,2]
[408569253,1773896708093,-308.8057681,0.0001065,2]
[408569254,1773896710580,-1283.56802978,0.00010651,2]
[408569255,1773896710955,-628.1322,0.00010651,2]
[408569256,1773896710984,-1632.8649,0.00010651,2]
[408569257,1773896711063,-2910.87974044,0.00010651,2]
[408569258,1773896761715,150.0,0.00016333,120]
[408569259,1773896791803,300.0,9.934e-05,2]
[408569260,1773896791832,2629.03,9.934e-05,2]
[408569261,1773896842173,5333.0,0.0001047,2]
[408569262,1773896854916,191.801434,0.00010447,2]
[408569263,1773896855557,-400.0,0.000105,3]
[408569264,1773896899404,1689.68,9.855e-05,2]
[408569265,1773896900930,-2785.528566,0.00010551,2]
[408569266,1773896901099,-10000.01,0.00010551,2]
[408569267,1773896901214,-10000.01,0.00010551,2]
[408569268,1773896901362,-10000.01,0.00010551,2]
[408569269,1773896901466,-10000.01,0.00010551,2]
[408569270,1773896901567,-10000.01,0.00010551,2]
[408569271,1773896904154,-10000.01,0.00010551,2]
[408569272,1773896965918,-1581.95335304,0.0001055,3]
[408569273,1773896965947,-187.0,0.00010551,3]
[408569274,1773896965976,-158.0,0.00010551,3]
[408569275,1773896966003,-900.0,0.000106,3]
[408569276,1773896966029,-326.0,0.00010651,3]
[408569277,1773896966055,-1400.0,0.000107,3]
[408569278,1773896966087,-947.04664696,0.0001075,3]
[408569279,1773896975655,-206.69216472,0.0001075,3]
[408569280,1773896975687,-1800.0,0.000108,3]
[408569281,1773896975716,-2300.0,0.000109,3]
[408569282,1773896975745,-500.0,0.0001105,3]
[408569283,1773896975773,-500.0,0.0001105,4]
[408569284,1773896975800,-193.30783528,0.0001105,5]
[408569288,1773897031320,-335.35508646,0.000104,2]
[408569289,1773897031329,-39.5924974,0.00010451,2]
[408569290,1773897031340,-298.86,0.00010451,2]
[408569291,1773897031352,-70.70857754,0.00010451,2]
[408569292,1773897031362,-236.0,0.00010451,2]
[408569293,1773897031371,-300.85640279,0.00010541,2]
[408569294,1773897031383,-304.03661604,0.00010541,2]
[408569295,1773897031393,-604.89301883,0.00010541,2]
[408569296,1773897031402,-383.90901614,0.00010544,2]
[408569297,1773897031412,-300.0,0.00010549,2]
[408569298,1773897031421,-1200.0,0.00010549,2]
[408569299,1773897031431,-500.0,0.0001055,2]
[408569300,1773897031440,-500.0,0.0001055,2]
[408569301,1773897031450,-500.0,0.0001055,2]
[408569302,1773897031460,-500.0,0.0001055,2]
[408569303,1773897031469,-500.0,0.0001055,2]
[408569304,1773897031479,-500.0,0.0001055,2]
[408569305,1773897031488,-500.0,0.0001055,2]
[408569306,1773897031498,-500.0,0.0001055,2]
[408569307,1773897031507,-500.0,0.0001055,2]
[408569308,1773897031517,-500.0,0.0001055,2]
[408569309,1773897031526,-402.31755915,0.0001055,2]
[408569310,1773897031535,-500.0,0.0001055,2]
[408569311,1773897031545,-500.0,0.0001055,2]
[408569312,1773897031554,-500.0,0.0001055,2]
[408569313,1773897031563,-500.0,0.0001055,2]
[408569314,1773897031573,-500.0,0.0001055,2]
[408569315,1773897031581,-971.17951982,0.0001055,2]
[408569316,1773897031591,-971.17951982,0.0001055,2]
[408569317,1773897031602,-971.17951982,0.0001055,2]
[408569318,1773897031611,-971.17951982,0.0001055,2]
[408569319,1773897031621,-971.17951982,0.0001055,2]
[408569320,1773897031630,-971.17951982,0.0001055,2]
[408569321,1773897031639,-971.17951982,0.0001055,2]
[408569322,1773897031648,-971.17951982,0.0001055,2]
[408569323,1773897031659,-971.17951982,0.0001055,2]
[408569324,1773897031668,-971.17951982,0.0001055,2]
[408569325,1773897031677,-971.17951982,0.0001055,2]
[408569326,1773897031686,-971.17951982,0.0001055,2]
[408569327,1773897031695,-971.17951982,0.0001055,2]
[408569328,1773897031706,-971.17951982,0.0001055,2]
[408569329,1773897031715,-971.17951982,0.0001055,2]
[408569330,1773897031724,-971.17951982,0.0001055,2]
[408569331,1773897031733,-971.17951982,0.0001055,2]
[408569332,1773897031743,-971.17951982,0.0001055,2]
[408569333,1773897031752,-971.17951982,0.0001055,2]
[408569334,1773897031762,-971.17951982,0.0001055,2]
[408569335,1773897031771,-971.17951982,0.0001055,2]
[408569336,1773897031780,-971.17951982,0.0001055,2]
[408569337,1773897031790,-971.17951982,0.0001055,2]
[408569338,1773897031799,-971.17951982,0.0001055,2]
[408569339,1773897031808,-971.17951982,0.0001055,2]
[408569340,1773897031818,-971.17951982,0.0001055,2]
[408569341,1773897031827,-971.17951982,0.0001055,2]
[408569342,1773897031837,-971.17951982,0.0001055,2]
[408569343,1773897031847,-971.17951982,0.0001055,2]
[408569344,1773897031856,-971.17951982,0.0001055,2]
[408569345,1773897031866,-971.17951982,0.0001055,2]
[408569346,1773897031876,-971.17951982,0.0001055,2]
[408569347,1773897031890,-971.17951982,0.0001055,2]
[408569348,1773897031899,-971.17951982,0.0001055,2]
[408569349,1773897031909,-971.17951982,0.0001055,2]
[408569350,1773897031918,-971.17951982,0.0001055,2]
[408569351,1773897031927,-971.17951982,0.0001055,2]
[408569352,1773897031937,-971.17951982,0.0001055,2]
[408569353,1773897031947,-971.17951982,0.0001055,2]
[408569354,1773897031956,-971.17951982,0.0001055,2]
[408569355,1773897031966,-971.17951982,0.0001055,2]
[408569356,1773897031975,-971.17951982,0.0001055,2]
[408569357,1773897031985,-971.17951982,0.0001055,2]
[408569358,1773897031995,-971.17951982,0.0001055,2]
[408569359,1773897032005,-971.17951982,0.0001055,2]
[408569360,1773897032015,-971.17951982,0.0001055,2]
[408569361,1773897032024,-971.17951982,0.0001055,2]
[408569362,1773897032033,-971.17951982,0.0001055,2]
[408569363,1773897032043,-971.17951982,0.0001055,2]
[408569364,1773897032053,-971.17951982,0.0001055,2]
[408569365,1773897032063,-971.17951982,0.0001055,2]
[408569366,1773897032073,-971.17951982,0.0001055,2]
[408569367,1773897032082,-971.17951982,0.0001055,2]
[408569368,1773897032092,-971.17951982,0.0001055,2]
[408569369,1773897032101,-971.17951982,0.0001055,2]
[408569370,1773897032111,-971.17951982,0.0001055,2]
[408569371,1773897032122,-971.17951982,0.0001055,2]
[408569372,1773897032132,-971.17951982,0.0001055,2]
[408569373,1773897032141,-971.17951982,0.0001055,2]
[408569374,1773897032151,-971.17951982,0.0001055,2]
[408569375,1773897032160,-473.58475061,0.0001055,2]
[408569376,1773897032170,-500.0,0.0001055,2]
[408569377,1773897032179,-500.0,0.0001055,2]
[408569378,1773897032188,-500.0,0.0001055,2]
[408569379,1773897032198,-500.0,0.0001055,2]
[408569380,1773897032208,-500.0,0.0001055,2]
[408569381,1773897032218,-500.0,0.0001055,2]
[408569382,1773897032227,-307.77077871,0.0001055,2]
[408569383,1773897032237,-964.48173003,0.0001055,2]
[408569384,1773897032246,-964.48173003,0.0001055,2]
[408569385,1773897032255,-964.48173003,0.0001055,2]
[408569386,1773897032265,-964.48173003,0.0001055,2]
[408569387,1773897032274,-964.48173003,0.0001055,2]
[408569388,1773897032284,-964.48173003,0.0001055,2]
[408569389,1773897032294,-964.48173003,0.0001055,2]
[408569390,1773897032303,-964.48173003,0.0001055,2]
[408569391,1773897032313,-964.48173003,0.0001055,2]
[408569392,1773897032322,-964.48173003,0.0001055,2]
[408569393,1773897032332,-964.48173003,0.0001055,2]
[408569394,1773897032342,-964.48173003,0.0001055,2]
[408569395,1773897032351,-964.48173003,0.0001055,2]
[408569396,1773897032361,-964.48173003,0.0001055,2]
[408569397,1773897032370,-964.48173003,0.0001055,2]
[408569398,1773897032380,-964.48173003,0.0001055,2]
[408569399,1773897032389,-964.48173003,0.0001055,2]
[408569400,1773897032398,-964.48173003,0.0001055,2]
[408569401,1773897032408,-964.48173003,0.0001055,2]
[408569402,1773897032417,-964.48173003,0.0001055,2]
[408569403,1773897032427,-964.48173003,0.0001055,2]
[408569404,1773897032436,-964.48173003,0.0001055,2]
[408569405,1773897032445,-964.48173003,0.0001055,2]
[408569406,1773897032455,-964.48173003,0.0001055,2]
[408569407,1773897032464,-964.48173003,0.0001055,2]
[408569408,1773897032474,-964.48173003,0.0001055,2]
[408569409,1773897032484,-964.48173003,0.0001055,2]
[408569410,1773897032494,-964.48173003,0.0001055,2]
[408569411,1773897032503,-964.48173003,0.0001055,2]
[408569412,1773897032513,-500.0,0.0001055,2]
[408569413,1773897032522,-500.0,0.0001055,2]
[408569414,1773897032531,-494.25859005,0.0001055,2]
[408569415,1773897032541,-500.0,0.0001055,2]
[408569416,1773897032551,-500.0,0.0001055,2]
[408569417,1773897032560,-500.0,0.0001055,2]
[408569418,1773897032569,-500.0,0.0001055,2]
[408569419,1773897032579,-605.32022647,0.0001055,2]
[408569420,1773897032588,-500.0,0.0001055,2]
[408569421,1773897032597,-500.0,0.0001055,2]
[408569422,1773897032606,-372.47788875,0.0001055,2]
[408569423,1773897032616,-500.0,0.0001055,2]
[408569424,1773897032626,-500.0,0.0001055,2]
[408569425,1773897032636,-500.0,0.0001055,2]
[408569426,1773897032647,-500.0,0.0001055,2]
[408569427,1773897032656,-500.0,0.0001055,2]
[408569428,1773897032665,-500.0,0.0001055,2]
[408569429,1773897032675,-500.0,0.0001055,2]
[408569430,1773897032687,-500.0,0.0001055,2]
[408569431,1773897032698,-189.16098835,0.0001055,2]
[408569432,1773897032707,-500.0,0.0001055,2]
[408569433,1773897032716,-500.0,0.0001055,2]
[408569434,1773897032725,-500.0,0.0001055,2]
[408569435,1773897032734,-648.27562786,0.0001055,2]
[408569436,1773897032742,-178.97673708,0.0001055,2]
[408569437,1773897032751,-303.0,0.0001055,2]
[408569438,1773897032762,-300.0,0.0001055,2]
[408569439,1773897032771,-150.0,0.0001055,2]
[408569440,1773897032781,-379219.59620698,0.00010551,2]
[408569441,1773897032794,-16839.10219956,0.00010551,2]
[408569442,1773897032807,-70377.58000761,0.00010551,2]